[Event "Titled Tuesday Blitz May 31 Late 2022"]
[White "Tatarinov, Dmitry"]
[Black "Estrada Nieto, Julian"]
[WhiteFideId "24160067"]
[BlackFideId "5101018"]
[WhiteElo "2302"]
[BlackElo "2252"]
[Result "1-0"]
[Round "03"]
[TimeControl "180+1"]
[Date "2022.06.01"]
[WhiteClock "0:01:08"]
[BlackClock "0:00:01"]

1. d4 {[%clk 0:03:00]}  d5 {[%clk 0:03:00]} 2. c4 {[%clk 0:03:01]}  dxc4 {[%clk 0:03:00]} 3. e3 {[%clk 0:03:00]}  Nf6 {[%clk 0:02:59]} 4. Bxc4 {[%clk 0:03:00]}  e6 {[%clk 0:02:57]} 5. Nf3 {[%clk 0:03:01]}  c5 {[%clk 0:02:58]} 6. O-O {[%clk 0:03:01]}  a6 {[%clk 0:02:58]} 7. Qe2 {[%clk 0:03:01]}  b5 {[%clk 0:02:57]} 8. Bb3 {[%clk 0:03:01]}  Bb7 {[%clk 0:02:58]} 9. Rd1 {[%clk 0:03:00]}  Nbd7 {[%clk 0:02:58]} 10. Nc3 {[%clk 0:02:57]}  Qb6 {[%clk 0:02:57]} 11. a4 {[%clk 0:02:50]}  b4 {[%clk 0:02:54]} 12. a5 {[%clk 0:02:50]}  Qc7 {[%clk 0:02:55]} 13. Na4 {[%clk 0:02:44]}  Bd6 {[%clk 0:02:44]} 14. dxc5 {[%clk 0:02:41]}  Nxc5 {[%clk 0:02:43]} 15. Nxc5 {[%clk 0:02:37]}  Bxc5 {[%clk 0:02:38]} 16. Bd2 {[%clk 0:02:37]}  O-O {[%clk 0:02:35]} 17. Be1 {[%clk 0:02:37]}  Ng4 {[%clk 0:02:14]} 18. h3 {[%clk 0:02:37]}  Ne5 {[%clk 0:02:08]} 19. Nxe5 {[%clk 0:02:33]}  Qxe5 {[%clk 0:02:08]} 20. Rac1 {[%clk 0:02:23]}  Rac8 {[%clk 0:01:52]} 21. Bc2 {[%clk 0:02:11]}  Rfd8 {[%clk 0:01:36]} 22. Bd3 {[%clk 0:02:09]}  Bd6 {[%clk 0:01:20]} 23. f4 {[%clk 0:01:59]}  Qxa5 {[%clk 0:01:19]} 24. Rxc8 {[%clk 0:01:57]}  Bxc8 {[%clk 0:01:09]} 25. Be4 {[%clk 0:01:57]}  Bc5 {[%clk 0:01:02]} 26. Rc1 {[%clk 0:01:53]}  Qb6 {[%clk 0:00:57]} 27. Bf2 {[%clk 0:01:47]}  f5 {[%clk 0:00:49]} 28. Bf3 {[%clk 0:01:46]}  Bd7 {[%clk 0:00:48]} 29. Kh2 {[%clk 0:01:42]}  Bb5 {[%clk 0:00:45]} 30. Qe1 {[%clk 0:01:40]}  a5 {[%clk 0:00:40]} 31. b3 {[%clk 0:01:33]}  Rd3 {[%clk 0:00:35]} 32. Be2 {[%clk 0:01:25]}  Rxb3 {[%clk 0:00:23]} 33. Bxb5 {[%clk 0:01:26]}  Qxb5 {[%clk 0:00:23]} 34. Qd1 {[%clk 0:01:26]}  Rc3 {[%clk 0:00:13]} 35. Qd8+ {[%clk 0:01:25]}  Bf8 {[%clk 0:00:13]} 36. Rd1 {[%clk 0:01:23]}  Rc2 {[%clk 0:00:13]} 37. Bh4 {[%clk 0:01:13]}  Qe2 {[%clk 0:00:12]} 38. Rg1 {[%clk 0:01:13]}  Qxe3 {[%clk 0:00:08]} 39. Be7 {[%clk 0:01:13]}  Qxf4+ {[%clk 0:00:07]} 40. Kh1 {[%clk 0:01:14]}  h6 {[%clk 0:00:03]} 41. Qxf8+ {[%clk 0:01:14]}  Kh7 {[%clk 0:00:04]} 42. Bd6 {[%clk 0:01:12]}  Qe4 {[%clk 0:00:04]} 43. Qb8 {[%clk 0:01:10]}  b3 {[%clk 0:00:04]} 44. Be5 {[%clk 0:01:11]}  b2 {[%clk 0:00:01]} 45. Bxb2 {[%clk 0:01:11]}  f4 {[%clk 0:00:01]} 46. Qe5 {[%clk 0:01:09]}  Qxe5 {[%clk 0:00:01]} 47. Bxe5 {[%clk 0:01:10]}  f3 {[%clk 0:00:01]} 48. gxf3 {[%clk 0:01:10]}  g5 {[%clk 0:00:01]} 49. Ra1 {[%clk 0:01:10]}  Rc5 {[%clk 0:00:01]} 50. Bd4 {[%clk 0:01:09]}  Rd5 {[%clk 0:00:02]} 51. Bb6 {[%clk 0:01:09]}  Kg6 {[%clk 0:00:02]} 52. Bxa5 {[%clk 0:01:08]}  Kf5 {[%clk 0:00:01]} 53. Kg2 {[%clk 0:01:08]}  Kf4 {[%clk 0:00:01]} 54. Be1 {[%clk 0:01:08]} 1-0


[Site "https://www.chess.com"]

[Event "Titled Tuesday Blitz May 31 Late 2022"]
[White "Terry, Renato"]
[Black "Vajda, Levente"]
[WhiteFideId "3803457"]
[BlackFideId "1203975"]
[WhiteElo "2577"]
[BlackElo "2573"]
[Result "1/2-1/2"]
[Round "03"]
[TimeControl "180+1"]
[Date "2022.05.31"]
[WhiteClock "0:01:07"]
[BlackClock "0:02:49"]

1. d4 {[%clk 0:03:00]}  d5 {[%clk 0:03:00]} 2. Bg5 {[%clk 0:03:00]}  Nf6 {[%clk 0:02:57]} 3. Nc3 {[%clk 0:02:55]}  e6 {[%clk 0:02:57]} 4. e3 {[%clk 0:02:48]}  Be7 {[%clk 0:02:57]} 5. Bd3 {[%clk 0:02:48]}  h6 {[%clk 0:02:57]} 6. Bh4 {[%clk 0:02:45]}  a6 {[%clk 0:02:58]} 7. Nf3 {[%clk 0:02:42]}  Nbd7 {[%clk 0:02:58]} 8. O-O {[%clk 0:02:40]}  c5 {[%clk 0:02:58]} 9. e4 {[%clk 0:02:22]}  c4 {[%clk 0:02:57]} 10. Be2 {[%clk 0:01:48]}  dxe4 {[%clk 0:02:57]} 11. Nd2 {[%clk 0:01:47]}  b5 {[%clk 0:02:58]} 12. Ncxe4 {[%clk 0:01:45]}  Nxe4 {[%clk 0:02:56]} 13. Bxe7 {[%clk 0:01:46]}  Qxe7 {[%clk 0:02:56]} 14. Nxe4 {[%clk 0:01:46]}  Bb7 {[%clk 0:02:57]} 15. Bf3 {[%clk 0:01:46]}  O-O {[%clk 0:02:57]} 16. c3 {[%clk 0:01:44]}  Rfd8 {[%clk 0:02:55]} 17. Qe2 {[%clk 0:01:41]}  Nb6 {[%clk 0:02:55]} 18. Rfe1 {[%clk 0:01:35]}  Bxe4 {[%clk 0:02:54]} 19. Bxe4 {[%clk 0:01:34]}  Rac8 {[%clk 0:02:53]} 20. a3 {[%clk 0:01:34]}  Qf6 {[%clk 0:02:54]} 21. Rad1 {[%clk 0:01:32]}  Nd5 {[%clk 0:02:53]} 22. g3 {[%clk 0:01:31]}  g6 {[%clk 0:02:52]} 23. h4 {[%clk 0:01:30]}  Kg7 {[%clk 0:02:52]} 24. Kg2 {[%clk 0:01:27]}  h5 {[%clk 0:02:52]} 25. Bf3 {[%clk 0:01:27]}  Ne7 {[%clk 0:02:51]} 26. Qe5 {[%clk 0:01:25]}  Nd5 {[%clk 0:02:49]} 27. Rd2 {[%clk 0:01:23]}  Rd7 {[%clk 0:02:48]} 28. Rde2 {[%clk 0:01:20]}  Rcd8 {[%clk 0:02:49]} 29. Qxf6+ {[%clk 0:01:14]}  Kxf6 {[%clk 0:02:48]} 30. Re5 {[%clk 0:01:14]}  Rd6 {[%clk 0:02:48]} 31. R1e2 {[%clk 0:01:13]}  R6d7 {[%clk 0:02:48]} 32. Re1 {[%clk 0:01:13]}  Rd6 {[%clk 0:02:49]} 33. R1e2 {[%clk 0:01:06]}  R6d7 {[%clk 0:02:49]} 34. Re1 {[%clk 0:01:07]} 1/2-1/2


[Site "https://www.chess.com"]

[Event "Titled Tuesday Blitz May 31 Late 2022"]
[White "Urazayev, Arystanbek"]
[Black "Trent, Lawrence"]
[WhiteFideId "13709810"]
[BlackFideId "408638"]
[WhiteElo "2422"]
[BlackElo "2474"]
[Result "1-0"]
[Round "03"]
[TimeControl "180+1"]
[Date "2022.06.01"]
[WhiteClock "0:00:03"]
[BlackClock "0:00:09"]

1. d4 {[%clk 0:03:00]}  d5 {[%clk 0:02:57]} 2. c4 {[%clk 0:03:01]}  e5 {[%clk 0:02:57]} 3. dxe5 {[%clk 0:03:01]}  d4 {[%clk 0:02:58]} 4. Nf3 {[%clk 0:03:01]}  Nc6 {[%clk 0:02:58]} 5. g3 {[%clk 0:03:01]}  Nge7 {[%clk 0:02:58]} 6. Bg2 {[%clk 0:03:01]}  Ng6 {[%clk 0:02:58]} 7. O-O {[%clk 0:03:01]}  Ngxe5 {[%clk 0:02:58]} 8. a3 {[%clk 0:03:01]}  a5 {[%clk 0:02:58]} 9. Nxe5 {[%clk 0:03:01]}  Nxe5 {[%clk 0:02:58]} 10. Bf4 {[%clk 0:03:00]}  Ng6 {[%clk 0:02:57]} 11. e3 {[%clk 0:02:59]}  Nxf4 {[%clk 0:02:56]} 12. gxf4 {[%clk 0:02:58]}  Bc5 {[%clk 0:02:56]} 13. exd4 {[%clk 0:02:53]}  Qxd4 {[%clk 0:02:56]} 14. Re1+ {[%clk 0:02:50]}  Kf8 {[%clk 0:02:56]} 15. Qxd4 {[%clk 0:02:43]}  Bxd4 {[%clk 0:02:56]} 16. Nc3 {[%clk 0:02:44]}  c6 {[%clk 0:02:45]} 17. Rad1 {[%clk 0:02:38]}  Bf6 {[%clk 0:02:44]} 18. Ne4 {[%clk 0:02:36]}  Bg4 {[%clk 0:02:28]} 19. f3 {[%clk 0:02:16]}  Be6 {[%clk 0:02:27]} 20. Nxf6 {[%clk 0:01:56]}  gxf6 {[%clk 0:02:26]} 21. Bf1 {[%clk 0:01:54]}  h5 {[%clk 0:02:12]} 22. h4 {[%clk 0:01:51]}  Kg7 {[%clk 0:02:10]} 23. f5 {[%clk 0:01:41]}  Bxf5 {[%clk 0:02:06]} 24. Re7 {[%clk 0:01:41]}  Rhd8 {[%clk 0:02:06]} 25. Rxd8 {[%clk 0:01:36]}  Rxd8 {[%clk 0:02:05]} 26. Rxb7 {[%clk 0:01:37]}  Rd2 {[%clk 0:02:01]} 27. b4 {[%clk 0:01:33]}  Ra2 {[%clk 0:01:57]} 28. b5 {[%clk 0:01:26]}  Ra1 {[%clk 0:01:51]} 29. Kf2 {[%clk 0:01:08]}  Ra2+ {[%clk 0:01:51]} 30. Kg3 {[%clk 0:01:07]}  Rxa3 {[%clk 0:01:50]} 31. Kf4 {[%clk 0:00:58]}  cxb5 {[%clk 0:01:39]} 32. cxb5 {[%clk 0:00:47]}  Be6 {[%clk 0:01:27]} 33. Ra7 {[%clk 0:00:35]}  a4 {[%clk 0:01:22]} 34. b6 {[%clk 0:00:11]}  Bd5 {[%clk 0:01:22]} 35. Be2 {[%clk 0:00:11]}  Rb3 {[%clk 0:01:18]} 36. Rxa4 {[%clk 0:00:09]}  Rxb6 {[%clk 0:01:18]} 37. Ra5 {[%clk 0:00:10]}  Rb4+ {[%clk 0:01:12]} 38. Kg3 {[%clk 0:00:10]}  Rd4 {[%clk 0:01:12]} 39. f4 {[%clk 0:00:11]}  Kg6 {[%clk 0:01:05]} 40. f5+ {[%clk 0:00:10]}  Kxf5 {[%clk 0:01:03]} 41. Bxh5 {[%clk 0:00:10]}  Rd3+ {[%clk 0:01:03]} 42. Kf2 {[%clk 0:00:10]}  Kf4 {[%clk 0:01:02]} 43. Ra4+ {[%clk 0:00:08]}  Be4 {[%clk 0:01:00]} 44. Be2 {[%clk 0:00:08]}  Rh3 {[%clk 0:00:59]} 45. h5 {[%clk 0:00:08]}  Rh2+ {[%clk 0:00:59]} 46. Ke1 {[%clk 0:00:09]}  f5 {[%clk 0:00:57]} 47. Ra3 {[%clk 0:00:08]}  Kg5 {[%clk 0:00:49]} 48. Rg3+ {[%clk 0:00:08]}  Kf4 {[%clk 0:00:49]} 49. Rg7 {[%clk 0:00:07]}  f6 {[%clk 0:00:47]} 50. Rg6 {[%clk 0:00:07]}  Ke3 {[%clk 0:00:40]} 51. Rg3+ {[%clk 0:00:06]}  Kd4 {[%clk 0:00:41]} 52. Ra3 {[%clk 0:00:06]}  Ke5 {[%clk 0:00:36]} 53. Kf1 {[%clk 0:00:06]}  f4 {[%clk 0:00:34]} 54. Bg4 {[%clk 0:00:06]}  f5 {[%clk 0:00:31]} 55. Be2 {[%clk 0:00:07]}  Kf6 {[%clk 0:00:30]} 56. Ra6+ {[%clk 0:00:07]}  Ke5 {[%clk 0:00:28]} 57. Ra5+ {[%clk 0:00:07]}  Kd4 {[%clk 0:00:28]} 58. Ra4+ {[%clk 0:00:07]}  Kc5 {[%clk 0:00:25]} 59. Ra3 {[%clk 0:00:06]}  Rh4 {[%clk 0:00:23]} 60. Kf2 {[%clk 0:00:03]}  Kd4 {[%clk 0:00:22]} 61. Ra4+ {[%clk 0:00:03]}  Ke5 {[%clk 0:00:22]} 62. Ra5+ {[%clk 0:00:03]}  Ke6 {[%clk 0:00:22]} 63. Bc4+ {[%clk 0:00:02]}  Kf6 {[%clk 0:00:22]} 64. Be2 {[%clk 0:00:02]}  f3 {[%clk 0:00:21]} 65. Ra6+ {[%clk 0:00:01]}  Ke5 {[%clk 0:00:21]} 66. Bxf3 {[%clk 0:00:01]}  Rf4 {[%clk 0:00:21]} 67. Ra5+ {[%clk 0:00:02]}  Kf6 {[%clk 0:00:21]} 68. Ra3 {[%clk 0:00:02]}  Kg5 {[%clk 0:00:21]} 69. Kg3 {[%clk 0:00:02]}  Rh4 {[%clk 0:00:12]} 70. Bxe4 {[%clk 0:00:02]}  Rg4+ {[%clk 0:00:12]} 71. Kf2 {[%clk 0:00:02]}  Rf4+ {[%clk 0:00:10]} 72. Bf3 {[%clk 0:00:02]}  Kh4 {[%clk 0:00:10]} 73. Ra8 {[%clk 0:00:02]}  Kg5 {[%clk 0:00:10]} 74. Rg8+ {[%clk 0:00:02]}  Kf6 {[%clk 0:00:10]} 75. Rg6+ {[%clk 0:00:02]}  Ke5 {[%clk 0:00:10]} 76. Kg3 {[%clk 0:00:02]}  Rb4 {[%clk 0:00:10]} 77. h6 {[%clk 0:00:03]}  Rb8 {[%clk 0:00:09]} 78. h7 {[%clk 0:00:02]}  Rh8 {[%clk 0:00:09]} 79. Rh6 {[%clk 0:00:03]} 1-0


[Site "https://www.chess.com"]

[Event "Titled Tuesday Blitz May 31 Late 2022"]
[White "Urbina Perez, Juan Antonio"]
[Black "Preotu, Razvan"]
[WhiteFideId "2217368"]
[BlackFideId "2613280"]
[WhiteElo "2192"]
[BlackElo "2407"]
[Result "0-1"]
[Round "03"]
[TimeControl "180+1"]
[Date "2022.06.01"]
[WhiteClock "0:00:14"]
[BlackClock "0:00:07"]

1. d4 {[%clk 0:03:00]}  Nf6 {[%clk 0:02:59]} 2. Nf3 {[%clk 0:03:01]}  g6 {[%clk 0:02:59]} 3. g3 {[%clk 0:02:55]}  Bg7 {[%clk 0:02:59]} 4. Bg2 {[%clk 0:02:56]}  d5 {[%clk 0:02:59]} 5. O-O {[%clk 0:02:57]}  O-O {[%clk 0:02:59]} 6. Nc3 {[%clk 0:02:58]}  c5 {[%clk 0:02:46]} 7. Re1 {[%clk 0:02:27]}  cxd4 {[%clk 0:02:41]} 8. Nxd4 {[%clk 0:02:28]}  e5 {[%clk 0:02:38]} 9. Nb3 {[%clk 0:02:28]}  d4 {[%clk 0:02:38]} 10. Ne4 {[%clk 0:02:26]}  Nxe4 {[%clk 0:02:18]} 11. Bxe4 {[%clk 0:02:27]}  f5 {[%clk 0:02:19]} 12. Bg2 {[%clk 0:02:26]}  e4 {[%clk 0:02:14]} 13. Bd2 {[%clk 0:02:07]}  Nc6 {[%clk 0:01:50]} 14. c3 {[%clk 0:02:03]}  dxc3 {[%clk 0:01:42]} 15. Bxc3 {[%clk 0:02:04]}  Bxc3 {[%clk 0:01:41]} 16. bxc3 {[%clk 0:02:03]}  Qe7 {[%clk 0:01:33]} 17. Nd4 {[%clk 0:01:59]}  Ne5 {[%clk 0:01:29]} 18. Qb3+ {[%clk 0:01:55]}  Kh8 {[%clk 0:01:26]} 19. Rab1 {[%clk 0:01:54]}  b6 {[%clk 0:01:21]} 20. f4 {[%clk 0:01:16]}  Nd7 {[%clk 0:01:02]} 21. Qd5 {[%clk 0:01:05]}  Ba6 {[%clk 0:01:01]} 22. Nc6 {[%clk 0:01:05]}  Qg7 {[%clk 0:00:57]} 23. e3 {[%clk 0:00:58]}  Nc5 {[%clk 0:00:49]} 24. Qe5 {[%clk 0:00:48]}  Nd3 {[%clk 0:00:42]} 25. Qxg7+ {[%clk 0:00:47]}  Kxg7 {[%clk 0:00:41]} 26. Red1 {[%clk 0:00:47]}  Rfc8 {[%clk 0:00:38]} 27. Nb4 {[%clk 0:00:47]}  Bc4 {[%clk 0:00:32]} 28. Bf1 {[%clk 0:00:43]}  Nxb4 {[%clk 0:00:23]} 29. cxb4 {[%clk 0:00:41]}  Bxf1 {[%clk 0:00:15]} 30. Kxf1 {[%clk 0:00:42]}  Rc2 {[%clk 0:00:15]} 31. Rbc1 {[%clk 0:00:41]}  Rxa2 {[%clk 0:00:05]} 32. Rd7+ {[%clk 0:00:41]}  Kg8 {[%clk 0:00:05]} 33. Rcc7 {[%clk 0:00:40]}  a5 {[%clk 0:00:05]} 34. Rg7+ {[%clk 0:00:39]}  Kf8 {[%clk 0:00:04]} 35. Rcf7+ {[%clk 0:00:38]}  Ke8 {[%clk 0:00:04]} 36. Rb7 {[%clk 0:00:37]}  Kf8 {[%clk 0:00:05]} 37. Rxh7 {[%clk 0:00:37]}  Kg8 {[%clk 0:00:06]} 38. Rbg7+ {[%clk 0:00:37]}  Kf8 {[%clk 0:00:06]} 39. Rb7 {[%clk 0:00:36]}  Kg8 {[%clk 0:00:07]} 40. bxa5 {[%clk 0:00:35]}  R8xa5 {[%clk 0:00:07]} 41. Rhg7+ {[%clk 0:00:32]}  Kf8 {[%clk 0:00:08]} 42. Rh7 {[%clk 0:00:30]}  Kg8 {[%clk 0:00:08]} 43. Rhg7+ {[%clk 0:00:31]}  Kf8 {[%clk 0:00:09]} 44. Rgc7 {[%clk 0:00:31]}  Ra8 {[%clk 0:00:09]} 45. Rf7+ {[%clk 0:00:29]}  Kg8 {[%clk 0:00:06]} 46. Rg7+ {[%clk 0:00:29]}  Kf8 {[%clk 0:00:07]} 47. Rxg6 {[%clk 0:00:30]}  Rc2 {[%clk 0:00:07]} 48. Rf6+ {[%clk 0:00:23]}  Ke8 {[%clk 0:00:08]} 49. Re6+ {[%clk 0:00:20]}  Kd8 {[%clk 0:00:08]} 50. Rd6+ {[%clk 0:00:16]}  Kc8 {[%clk 0:00:08]} 51. Rbd7 {[%clk 0:00:16]}  Ra1+ {[%clk 0:00:07]} 52. Rd1 {[%clk 0:00:17]}  Raa2 {[%clk 0:00:08]} 53. Rd8+ {[%clk 0:00:16]}  Kb7 {[%clk 0:00:07]} 54. R1d7+ {[%clk 0:00:15]}  Kc6 {[%clk 0:00:06]} 55. Rd6+ {[%clk 0:00:16]}  Kb5 {[%clk 0:00:06]} 56. Rd5+ {[%clk 0:00:16]}  Kb4 {[%clk 0:00:05]} 57. Rd4+ {[%clk 0:00:17]}  Kb3 {[%clk 0:00:06]} 58. Rb8 {[%clk 0:00:15]}  Ra1+ {[%clk 0:00:06]} 59. Rd1 {[%clk 0:00:14]}  Rxd1# {[%clk 0:00:07]} 0-1


[Site "https://www.chess.com"]

[Event "Titled Tuesday Blitz May 31 Late 2022"]
[White "Wachinger, Guenther"]
[Black "Barria Zuniga, Daniel"]
[WhiteFideId "4604261"]
[BlackFideId "3400816"]
[WhiteElo "2212"]
[BlackElo "2414"]
[Result "0-1"]
[Round "03"]
[TimeControl "180+1"]
[Date "2022.06.01"]
[WhiteClock "0:00:05"]
[BlackClock "0:00:21"]

1. e4 {[%clk 0:03:00]}  g6 {[%clk 0:02:58]} 2. d4 {[%clk 0:03:00]}  Bg7 {[%clk 0:02:59]} 3. Nc3 {[%clk 0:02:59]}  c5 {[%clk 0:02:58]} 4. Nf3 {[%clk 0:02:59]}  Qa5 {[%clk 0:02:58]} 5. Be3 {[%clk 0:02:57]}  Nf6 {[%clk 0:02:57]} 6. Qd2 {[%clk 0:02:23]}  Nc6 {[%clk 0:02:56]} 7. h3 {[%clk 0:02:19]}  cxd4 {[%clk 0:02:54]} 8. Nxd4 {[%clk 0:02:19]}  Nxe4 {[%clk 0:02:54]} 9. Nxc6 {[%clk 0:02:14]}  Qxc3 {[%clk 0:02:53]} 10. bxc3 {[%clk 0:02:00]}  Nxd2 {[%clk 0:02:51]} 11. Kxd2 {[%clk 0:01:52]}  bxc6 {[%clk 0:02:51]} 12. h4 {[%clk 0:01:50]}  d6 {[%clk 0:02:43]} 13. Bd3 {[%clk 0:01:49]}  Be6 {[%clk 0:02:41]} 14. Rhb1 {[%clk 0:01:45]}  c5 {[%clk 0:02:30]} 15. Be4 {[%clk 0:01:38]}  d5 {[%clk 0:01:44]} 16. Bf3 {[%clk 0:01:38]}  Kd7 {[%clk 0:01:30]} 17. Bxc5 {[%clk 0:01:33]}  Rhc8 {[%clk 0:01:30]} 18. Bd4 {[%clk 0:01:31]}  Bxd4 {[%clk 0:01:21]} 19. cxd4 {[%clk 0:01:30]}  Rc4 {[%clk 0:01:21]} 20. c3 {[%clk 0:01:23]}  Rac8 {[%clk 0:01:22]} 21. Rb7+ {[%clk 0:01:22]}  Kd6 {[%clk 0:01:18]} 22. Rc1 {[%clk 0:01:09]}  Ra4 {[%clk 0:01:14]} 23. Rc2 {[%clk 0:01:05]}  Ra3 {[%clk 0:01:02]} 24. Rb3 {[%clk 0:01:02]}  Ra4 {[%clk 0:00:52]} 25. Rb4 {[%clk 0:00:59]}  Rc4 {[%clk 0:00:45]} 26. Rb8 {[%clk 0:00:49]}  Ra3 {[%clk 0:00:41]} 27. Rb3 {[%clk 0:00:32]}  Rca4 {[%clk 0:00:39]} 28. Rxa3 {[%clk 0:00:32]}  Rxa3 {[%clk 0:00:38]} 29. Rb2 {[%clk 0:00:32]}  Bd7 {[%clk 0:00:33]} 30. Bd1 {[%clk 0:00:32]}  f6 {[%clk 0:00:31]} 31. Bb3 {[%clk 0:00:28]}  e5 {[%clk 0:00:30]} 32. Ke3 {[%clk 0:00:27]}  a5 {[%clk 0:00:29]} 33. dxe5+ {[%clk 0:00:20]}  fxe5 {[%clk 0:00:29]} 34. Kd2 {[%clk 0:00:14]}  Kc5 {[%clk 0:00:28]} 35. Bd1 {[%clk 0:00:14]}  Bb5 {[%clk 0:00:27]} 36. g3 {[%clk 0:00:11]}  a4 {[%clk 0:00:27]} 37. Bc2 {[%clk 0:00:10]}  Bc4 {[%clk 0:00:27]} 38. Bb1 {[%clk 0:00:10]}  d4 {[%clk 0:00:23]} 39. cxd4+ {[%clk 0:00:11]}  exd4 {[%clk 0:00:23]} 40. Rb8 {[%clk 0:00:11]}  Bxa2 {[%clk 0:00:23]} 41. Rc8+ {[%clk 0:00:09]}  Kb6 {[%clk 0:00:21]} 42. Bxa2 {[%clk 0:00:07]}  Rxa2+ {[%clk 0:00:20]} 43. Kd3 {[%clk 0:00:08]}  Rxf2 {[%clk 0:00:20]} 44. Kxd4 {[%clk 0:00:08]}  a3 {[%clk 0:00:20]} 45. Ra8 {[%clk 0:00:07]}  a2 {[%clk 0:00:20]} 46. Ke5 {[%clk 0:00:08]}  Kc5 {[%clk 0:00:20]} 47. g4 {[%clk 0:00:08]}  h5 {[%clk 0:00:18]} 48. gxh5 {[%clk 0:00:06]}  gxh5 {[%clk 0:00:19]} 49. Ra7 {[%clk 0:00:03]}  Kc4 {[%clk 0:00:18]} 50. Ra3 {[%clk 0:00:03]}  Kb4 {[%clk 0:00:18]} 51. Ra8 {[%clk 0:00:03]}  Kb3 {[%clk 0:00:18]} 52. Rb8+ {[%clk 0:00:03]}  Kc2 {[%clk 0:00:18]} 53. Rc8+ {[%clk 0:00:03]}  Kb1 {[%clk 0:00:18]} 54. Rb8+ {[%clk 0:00:03]}  Rb2 {[%clk 0:00:19]} 55. Ra8 {[%clk 0:00:04]}  a1=Q {[%clk 0:00:19]} 56. Rxa1+ {[%clk 0:00:04]}  Kxa1 {[%clk 0:00:20]} 57. Kf6 {[%clk 0:00:04]}  Rb5 {[%clk 0:00:20]} 58. Kg6 {[%clk 0:00:05]}  Ka2 {[%clk 0:00:21]} 0-1


[Site "https://www.chess.com"]

[Event "Titled Tuesday Blitz May 31 Late 2022"]
[White "Zakarian, David"]
[Black "Djokic, Mihailo"]
[WhiteFideId "13301276"]
[BlackFideId "976440"]
[WhiteElo "2452"]
[BlackElo "2202"]
[Result "0-1"]
[Round "03"]
[TimeControl "180+1"]
[Date "2022.06.01"]
[WhiteClock "0:00:03"]
[BlackClock "0:00:16"]

1. e4 {[%clk 0:03:00]}  c5 {[%clk 0:03:00]} 2. Nf3 {[%clk 0:03:00]}  d6 {[%clk 0:03:00]} 3. Bb5+ {[%clk 0:03:00]}  Bd7 {[%clk 0:03:00]} 4. Bxd7+ {[%clk 0:02:59]}  Qxd7 {[%clk 0:03:01]} 5. O-O {[%clk 0:02:59]}  Nc6 {[%clk 0:03:02]} 6. c3 {[%clk 0:02:58]}  Nf6 {[%clk 0:03:02]} 7. d4 {[%clk 0:02:59]}  cxd4 {[%clk 0:03:03]} 8. cxd4 {[%clk 0:02:58]}  d5 {[%clk 0:03:02]} 9. e5 {[%clk 0:02:58]}  Ne4 {[%clk 0:03:03]} 10. Ne1 {[%clk 0:02:58]}  f6 {[%clk 0:03:02]} 11. f3 {[%clk 0:02:58]}  Ng5 {[%clk 0:03:02]} 12. Be3 {[%clk 0:02:57]}  Nf7 {[%clk 0:02:57]} 13. f4 {[%clk 0:02:56]}  e6 {[%clk 0:02:57]} 14. exf6 {[%clk 0:02:51]}  gxf6 {[%clk 0:02:56]} 15. Nc3 {[%clk 0:02:52]}  f5 {[%clk 0:02:54]} 16. Nd3 {[%clk 0:02:41]}  Bd6 {[%clk 0:02:47]} 17. Qh5 {[%clk 0:02:36]}  O-O-O {[%clk 0:02:46]} 18. Nb5 {[%clk 0:02:30]}  Kb8 {[%clk 0:02:44]} 19. Rfc1 {[%clk 0:02:19]}  a6 {[%clk 0:02:44]} 20. Nxd6 {[%clk 0:02:18]}  Nxd6 {[%clk 0:02:45]} 21. Nc5 {[%clk 0:02:04]}  Qc8 {[%clk 0:02:40]} 22. Rc3 {[%clk 0:01:56]}  Nb5 {[%clk 0:02:37]} 23. Rb3 {[%clk 0:01:51]}  Ka8 {[%clk 0:02:17]} 24. Qf7 {[%clk 0:01:30]}  Rhe8 {[%clk 0:01:49]} 25. a4 {[%clk 0:01:17]}  Re7 {[%clk 0:01:15]} 26. Qf6 {[%clk 0:01:03]}  Nd6 {[%clk 0:01:08]} 27. Rc1 {[%clk 0:00:57]}  Rf8 {[%clk 0:01:05]} 28. Qh4 {[%clk 0:00:52]}  Nc4 {[%clk 0:01:05]} 29. Bf2 {[%clk 0:00:48]}  Rff7 {[%clk 0:00:48]} 30. Qg3 {[%clk 0:00:40]}  Rg7 {[%clk 0:00:47]} 31. Qc3 {[%clk 0:00:38]}  Qb8 {[%clk 0:00:41]} 32. Qe1 {[%clk 0:00:31]}  Qxf4 {[%clk 0:00:39]} 33. Rd1 {[%clk 0:00:20]}  e5 {[%clk 0:00:30]} 34. Bg3 {[%clk 0:00:20]}  Qg4 {[%clk 0:00:26]} 35. dxe5 {[%clk 0:00:21]}  f4 {[%clk 0:00:24]} 36. Rxd5 {[%clk 0:00:14]}  fxg3 {[%clk 0:00:24]} 37. Rxg3 {[%clk 0:00:12]}  Qc8 {[%clk 0:00:21]} 38. Rxg7 {[%clk 0:00:12]}  Rxg7 {[%clk 0:00:22]} 39. e6 {[%clk 0:00:13]}  Ne7 {[%clk 0:00:19]} 40. Rh5 {[%clk 0:00:08]}  Qc6 {[%clk 0:00:17]} 41. g3 {[%clk 0:00:06]}  Qf3 {[%clk 0:00:15]} 42. b3 {[%clk 0:00:04]}  Qxh5 {[%clk 0:00:15]} 43. bxc4 {[%clk 0:00:03]}  Qxc5+ {[%clk 0:00:16]} 0-1


[Site "https://www.chess.com"]